Cogmind - Beta 14 @@@ ROGUE MODE // 2025.03.16 @ 19:41:10 Player: BatSpy Result: Destroyed by H-61 Shepherd with Heavy Assault Cannon Performance ------------- Evolutions (2) 1000 Regions Visited (3) 600 Robots Destroyed (46) 230 Value Destroyed (1310) 1310 Prototype IDs (4) 80 Alien Tech Used (0) 0 Bonus (0) 0 TOTAL SCORE: 3220 Bonus ------- None Cogmind --------- Core Integrity 0/550 Matter 300/300 Energy 22/100 System Corruption 0% Temperature Cool (9) Movement Core (50) Location -8/Materials Parts ------- > --- POWER (1) -------- (None) > --- PROPULSION (4) --- (None) > --- UTILITY (4) ------ (None) > --- WEAPON (2) ------- (None) > --- INVENTORY (5) ---- System Shield Improved Datajack Hammer Peak State ------------ > --- POWER ------------ (None) > --- PROPULSION ------- Titanium Leg Wheel Airjet > --- UTILITY ---------- Improved Terrain Scanner Recoil Stabilizer Hardened Light Armor Plating Hardened Medium Armor Plating > --- WEAPON ----------- Pulse Rifle Flail > --- INVENTORY -------- System Shield Improved Datajack Hammer [Rating: 23] Favorites ----------- Power Heavy Ion Engine Engine Heavy Ion Engine Power Core Light Nuclear Core Propulsion Hover Unit Treads Light Treads Leg Titanium Leg Wheel Wheel Hover Unit Hover Unit Flight Unit Improved Flight Unit Utility Signal Interpreter Device Improved Terrain Scanner Storage Small Storage Unit Processor Signal Interpreter Protection Improved Light Armor Plating Weapon Flail Energy Gun Medium Laser Launcher Improved Grenade Launcher Impact Weapon Flail Build | -11 -10 -9 -8 ------- Run | Yrd Mat Mat Mat Slots Evolved 4 | . . 2 2 Power . | . . . . Propulsion 2 | . . 2 . Utility 2 | . . . 2 Weapon . | . . . . Parts Attached 48 | 6 6 21 15 Power 5 | 1 1 2 1 Engine 2 | 1 . 1 . Core 3 | . 1 1 1 Reactor . | . . . . Propulsion 17 | 2 2 9 4 Treads 2 | 2 . . . Leg 2 | . . . 2 Wheel 5 | . . 4 1 Hover 7 | . 2 4 1 Flight 1 | . . 1 . Utility 11 | 1 2 2 6 Device 5 | . . 2 3 Storage 1 | 1 . . . Processor 1 | . 1 . . Hackware . | . . . . Protection 4 | . 1 . 3 Artifact . | . . . . Weapon 15 | 2 1 8 4 Energy Gun 4 | 2 . . 2 Energy Cannon . | . . . . Ballistic Gun . | . . . . Ballistic Cannon . | . . . . Launcher 8 | . 1 6 1 Special Weapon . | . . . . Impact Weapon 3 | . . 2 1 Slashing Weapon . | . . . . Piercing Weapon . | . . . . Special Melee Weapon . | . . . . Unidentified Prototypes 2 | . . 2 . Parts Lost 26 | . . 4 22 Power 3 | . . 1 2 Propulsion 11 | . . 3 8 Utility 7 | . . . 7 Weapon 5 | . . . 5 Highest Loss Streak 10 | . . 2 10 To Critical Strikes . | . . . . Average Slot Usage (%) 83 | . 98 97 67 Engine 5 | . 10 2 5 Core 3 | . 3 8 1 Treads 3 | . 14 . . Leg 3 | . . . 7 Wheel 5 | . . 9 6 Hover 13 | . 14 32 2 Device 11 | . . 9 18 Storage 4 | . 14 1 . Processor 6 | . 2 11 6 Protection 6 | . 10 . 8 Energy Gun 6 | . 22 . . Launcher 6 | . 5 15 2 Impact Weapon 5 | . . 6 8 Peak Build Rating 23 | 6 10 16 23 Average Rating 13 | 4 7 13 16 On Entrance 8 | . 6 10 16 Naked Turns 4 | . . . 4 Heaviest Build 23 | 14 18 21 23 Greatest Support 40 | 40 40 40 40 Greatest Overweight (x) 3 | . 1 1 3 Average Overweight (x) . | . . . . Largest Inventory Capacity 8 | 8 8 8 5 Average Capacity 5 | 6 8 5 5 Most Carried 8 | 5 8 8 5 Average Carried 4 | 2 4 5 3 Final Capacity 8 | 8 8 5 5 Final Carried 8 | 2 8 5 3 Class Distribution -------------------- 94% | Mutant 3% | Skirmisher Dominant Class ---------------- Mutant | -10/Materials Mutant | -9/Materials Mutant | -8/Materials Resources | -11 -10 -9 -8 ----------- Run | Yrd Mat Mat Mat Matter Collected 1101 | 208 163 266 464 Remotely . | . . . . Salvage Created 1231 | . 354 378 499 Parts 58 | . 27 17 14 Haulers Intercepted 2 | . 1 1 . Recyclers Shooed 3 | . 1 2 . Parts Field Recycled . | . . . . Retrieved Matter . | . . . . Parts Self-Destructed . | . . . . Prevented . | . . . . Kills | -11 -10 -9 -8 ------- Run | Yrd Mat Mat Mat Combat Hostiles Destroyed 32 | . 8 11 13 Melee 2 | . . 1 1 Guns 1 | . 1 . . AOE 20 | . 7 9 4 Classes Destroyed 10 | . 8 1 1 Worker 1 | . . . 1 Builder 3 | . 1 . 2 Tunneler 2 | . 1 1 . Hauler 2 | . 1 1 . Recycler 1 | . 1 . . Operator 2 | . 1 1 . Watcher 3 | . 1 2 . Swarmer 6 | . 3 3 . Grunt 19 | . 5 5 9 Sentry 7 | . . 3 4 Best Kill Streak 13 | . 13 4 6 Combat Bots Only 8 | . 8 3 3 Max Kills in Single Turn 3 | . 3 3 1 Gunslinging . | . . . . Exploded 3 | . 2 3 1 Melee 1 | . . 1 1 Uniques/NPCs Destroyed . | . . . . Combat | -11 -10 -9 -8 -------- Run | Yrd Mat Mat Mat Hostile Shots Fired 223 | . 27 30 166 Missed 64 | . 10 11 43 Damage Taken 2858 | . 230 293 2335 Core 680 | . 21 99 560 Absorbed by Shields . | . . . . Core Remaining (%) 88 | 100 91 75 . Volleys Fired 50 | . 13 9 28 Largest 2 | . 2 2 2 Hottest 80 | . 80 60 72 Shots Fired 72 | . 26 14 32 Gun 28 | . 13 . 15 Cannon . | . . . . Launcher 44 | . 13 14 17 Special . | . . . . Kinetic . | . . . . Thermal 23 | . 13 . 10 Explosive 44 | . 13 14 17 Electromagnetic 5 | . . . 5 Robot Hit Streak 10 | . 5 4 10 Robot Miss Streak 2 | . 1 2 2 Penetration Max . | . . . . Secondary Targets . | . . . . Shots Hit Robots 79 | . 11 19 49 Core Hits 53 | . 20 17 16 Critical Kills 1 | . . 1 . Critical Parts Destroyed 11 | . . 2 9 Critical Strikes 13 | . . 3 10 Corrupt 1 | . . . 1 Smash 12 | . . 3 9 Melee Attacks 63 | . . 20 43 Impact 63 | . . 20 43 Slashing . | . . . . Piercing . | . . . . Sneak Attacks 2 | . . 2 . Combat Hostiles . | . . . . Follow-up Attacks 3 | . . 3 . Damage Inflicted 3653 | . 891 1064 1698 Guns 270 | . 76 . 194 Cannons . | . . . . Explosions 2180 | . 815 663 702 Melee 1203 | . . 401 802 Ramming . | . . . . Kinetic . | . . . . Thermal 303 | . 169 . 134 Explosive 2087 | . 722 663 702 Electromagnetic 60 | . . . 60 Impact 1203 | . . 401 802 Slashing . | . . . . Piercing . | . . . . Highest Corruption . | . . . . Average Corruption . | . . . . Corruption Purged . | . . . . Corruption Blocked . | . . . . Overload Shots . | . . . . Overflow Damage 466 | . 63 95 308 Projectiles . | . . . . Explosions 107 | . 63 37 7 Melee 359 | . . 58 301 Knockbacks 4 | . . 3 1 Impact 4 | . . 3 1 Kinetic . | . . . . Secondary . | . . . . Self-Inflicted Damage 33 | . . 32 1 Shots 2 | . . 1 1 Rammed . | . . . . Targets Rammed . | . . . . Kicked . | . . . . Crushed . | . . . . Highest Temperature 308 | . 308 22 112 Average Temperature 87 | . 145 8 38 Received Heat Transfer 1068 | . 132 90 846 Effects 1 | . 1 . . Energy Bleed 1 | . 1 . . Siege Activations . | . . . . Robots Corrupted 12 | . . 3 9 Combat Hostiles 9 | . . 1 8 Parts Fried 14 | . . 6 8 Impact Corruptions 18 | . . 5 13 Robots Melted . | . . . . Combat Hostiles . | . . . . Parts Melted . | . . . . Heat Transferred 568 | . 272 . 296 Parts Sabotaged . | . . . . Parts Stolen . | . . . . Parts Stripped . | . . . . Power Chain Reactions . | . . . . Alert | -11 -10 -9 -8 ------- Run | Yrd Mat Mat Mat Peak Influence 389 | . 320 297 389 Initial 92 | . . 50 92 Average 171 | . 94 176 229 Maximum Alert Level 1 | . 1 1 1 Low Security (%) 60 | 100 71 55 53 Level 1 39 | . 28 44 46 Level 2 . | . . . . Level 3 . | . . . . Level 4 . | . . . . Level 5 . | . . . . High Security . | . . . . Max Security . | . . . . Squads Dispatched 3 | . . 1 2 Investigation 1 | . . 1 . Extermination . | . . . . Reinforcement 2 | . . . 2 Assault . | . . . . Garrison . | . . . . Intercept . | . . . . Searches Triggered . | . . . . Construction Impeded 1 | . . . 1 Haulers Reinforced . | . . . . Active Scanning Responses . | . . . . Cargo Convoy Interrupts . | . . . . Stealth | -11 -10 -9 -8 --------- Run | Yrd Mat Mat Mat Distress Signals 3 | . 1 2 . Communications Jammed . | . . . . Distress Signals . | . . . . Times Spotted 62 | . 12 21 29 Peak Tracking Total 10 | . 5 4 10 Tactical Retreats 4 | . . 1 3 Traps | -11 -10 -9 -8 ------- Run | Yrd Mat Mat Mat Traps Triggered . | . . . . Indirectly . | . . . . Trap Hack Attempts . | . . . . Triggered . | . . . . Disarmed . | . . . . Reprogrammed . | . . . . Reused . | . . . . Traps Extracted . | . . . . Installed . | . . . . Triggered . | . . . . Machines | -11 -10 -9 -8 ---------- Run | Yrd Mat Mat Mat Machines Disabled 2 | . 1 1 . Max in Single Turn 1 | . 1 1 . Machines Repaired . | . . . . Machines Dismantled . | . . . . Machines Sabotaged . | . . . . Overloaded Fab Kills . | . . . . Hacking | -11 -10 -9 -8 --------- Run | Yrd Mat Mat Mat Machines Accessed 17 | . 4 6 7 Terminals 14 | . 3 5 6 Fabricators . | . . . . Repair Stations . | . . . . Recycling Units 2 | . 1 1 . Scanalyzers 1 | . . . 1 Garrison Access . | . . . . Total Hacks 58 | . 12 25 21 Successful 41 | . 7 20 14 Failed 17 | . 5 5 7 Catastrophic 3 | . . . 3 Database Lockouts . | . . . . Manual 24 | . 5 11 8 Terminals 49 | . 11 22 16 Fabricators . | . . . . Repair Stations . | . . . . Recycling Units 4 | . 1 3 . Scanalyzers 5 | . . . 5 Garrison Access . | . . . . Terminal Hacks 21 | . 4 11 6 Record 6 | . 1 2 3 Robot Analysis 1 | . . 1 . Prototype ID Bank 1 | . 1 . . Emergency Access Points 1 | . . . 1 Alert Level 7 | . 2 4 1 Unreport Threat 2 | . . 2 . Dispatch Records 1 | . . 1 . Zone Layout 2 | . . 1 1 Fabricator Hacks . | . . . . Repair Station Hacks . | . . . . Recycling Unit Hacks 4 | . 1 3 . Process 1 | . . 1 . Report Inventory 2 | . 1 1 . Retrieve Matter 1 | . . 1 . Scanalyzer 5 | . . . 5 Insert Component 2 | . . . 2 Analyze 3 | . . . 3 Garrison Access Hacks . | . . . . Unauthorized Hacks 11 | . 2 6 3 Terminals 11 | . 2 6 3 Track 2 | . 1 1 . Botnet 8 | . 1 4 3 Operators 1 | . . 1 . Fabricators . | . . . . Repair Stations . | . . . . Recycling Units . | . . . . Scanalyzers . | . . . . Garrison Access . | . . . . Data Cores Recovered 1 | . 1 . . Used . | . . . . Hacking Detections 14 | . 2 5 7 Full Trace Events 1 | . . 1 . Feedback Events . | . . . . Feedback Blocked . | . . . . Robot Schematics Acquired . | . . . . Robots Built . | . . . . Authchips . | . . . . Time . | . . . . Total Robot Build Rating . | . . . . Part Schematics Acquired 2 | . . . 2 Parts Built . | . . . . Authchips . | . . . . Time . | . . . . Total Part Build Rating . | . . . . Parts Repaired . | . . . . Time . | . . . . Parts Recycled . | . . . . Recycled Matter 7 | . . 7 . Retrieved Matter 7 | . . 7 . Retrieved Components . | . . . . Parts Scanalyzed 2 | . . . 2 Part Schematics Acquired 2 | . . . 2 Parts Damaged . | . . . . Bothacking | -11 -10 -9 -8 ------------ Run | Yrd Mat Mat Mat Used RIF Installer . | . . . . Robots Hacked . | . . . . Non-combat . | . . . . Combat . | . . . . Robot Hacks Applied . | . . . . Relay Couplers Released . | . . . . Fabnet Peak Effective % . | . . . . Robots Rewired . | . . . . Allies Hacked . | . . . . Hacks Repelled . | . . . . Allies | -11 -10 -9 -8 -------- Run | Yrd Mat Mat Mat Total Allies . | . . . . Largest Group . | . . . . Highest-Rated Group . | . . . . Highest-Rated Ally . | . . . . Total Orders . | . . . . Ally Attacks . | . . . . Total Damage . | . . . . Kills . | . . . . Allies Corrupted . | . . . . Allies Melted . | . . . . Intel | -11 -10 -9 -8 ------- Run | Yrd Mat Mat Mat Robot Analysis Total 1 | . . 1 . Derelict Logs Recovered . | . . . . Drone Launches . | . . . . Drone Recoveries . | . . . . Exploration | -11 -10 -9 -8 ------------- Run | Yrd Mat Mat Mat Turns Passed 1637 | 85 401 393 758 Spaces Moved 1211 | 61 247 477 426 Core 45 | 23 . . 22 Treads 158 | 38 120 . . Legs 204 | . . . 204 Wheels 270 | . . 86 184 Hover 534 | . 127 391 16 Flight . | . . . . Fastest Speed 48 | 50 116 48 50 Average Speed 98 | 118 137 56 121 Slowest Speed 200 | 160 160 120 200 Overloaded Moves . | . . . . Propulsion Burnouts . | . . . . Robots Hopped . | . . . . Cave-ins Triggered . | . . . . Exploration Rate (%) 30 | 4 43 41 32 Regions Visited 3 Branch Regions . Pre-discovered Areas . | . . . . Known Exits Taken 2 | . 1 1 . Unknown Exits Taken 1 | 1 . . . Scrap Searched . | . . . . Spaces Dug . | . . . . Terrain Destroyed 254 | . 50 106 98 Melee . | . . . . Projectile . | . . . . AOE 254 | . 50 106 98 Terrain Rammed . | . . . . Walls Destroyed . | . . . . Machines Disabled . | . . . . Actions | -11 -10 -9 -8 --------- Run | Yrd Mat Mat Mat Total 1488 | 74 284 561 569 Wait 59 | . . 15 44 Move 1208 | 60 246 476 426 Hop . | . . . . Pick Up 40 | 8 12 8 12 Fast Attach 6 | . 1 5 . Attach 25 | 6 1 5 13 Detach 1 | . . 1 . Swap 18 | . 4 12 2 Drop 22 | . 7 14 1 Fire 50 | . 13 9 28 Melee 59 | . . 16 43 Ram . | . . . . Kick . | . . . . Crush . | . . . . Escape Stasis . | . . . . Rewire . | . . . . Trap . | . . . . Miscellaneous . | . . . . Route ------- -11/Scrapyard -10/Materials (discovered 2 exits: *Mat x2) -9/Materials -8/Materials History --------- Turn | Location | Event 5 | -11/Scrapyard | Discovered new exit (range 15) 86 | -11/Scrapyard | Entered Materials 222 | -10/Materials | Discovered new exit (range 16) 334 | -10/Materials | Build established: Mutant 362 | -10/Materials | Discovered new exit (range 8) 412 | -10/Materials | Destroyed 8 combat bots 434 | -10/Materials | Identified exit to Materials 487 | -10/Materials | Entered another Materials area 487 | -9/Materials | Evolved 2 slots: Propulsion x2 663 | -9/Materials | Discovered new exit (range 16) 847 | -9/Materials | Identified exit to Materials 880 | -9/Materials | Entered another Materials area 880 | -8/Materials | Evolved 2 slots: Utility x2 1004 | -8/Materials | Lost 6 parts (4n1u1w) 1502 | -8/Materials | Lost 3 parts (1p2u) 1629 | -8/Materials | Core integrity fell below 50% 1635 | -8/Materials | Core integrity fell below 20% 1638 | -8/Materials | Destroyed by H-61 Shepherd with Heavy Assault Cannon Last Messages --------------- 01609_ C-30 ARC bursts open, deploying its payload. 01609_ G-47 Trooper unfolds itself. 01611_ Imp. Terrain Scanner destroyed. 01616_ Hrd. Medium Armor Plating destroyed. 01623_ Hrd. Light Armor Plating destroyed. 01624_ L-31 Rogue destroyed. 01625_ Wheel destroyed. 01628_ Critical hit (Burn: +37). 01629_ Recoil Stabilizer destroyed. 01630_ U-05 Engineer builds a Wall. 01631_ Pulse Rifle destroyed. 01632_ Flail destroyed. 01632_ Knocked back. 01633_ Acquired Imp. Aluminum Leg. 01634_ Knocked back. 01635_ Acquired 10 matter. 01636_ Imp. Aluminum Leg destroyed. 01636_ Knocked back. 01638_ Penetrated by Slug. Map ----- +----------------------------------------------------+ | ???????????????????????????#???# # ## ## | | ???????????????????????????????# """ + # ## | | ????????????????????????????#??# "Y" # ##### | | ??????????????????????????????## # ## "" | | ???????????????????????????????########### ## "" | | ???????????????????????????????????#???## # | | ???????????????????????????#?????#?????## # " | | ??????????? #### #????????#???## + "" | | ??????????? #??????#??????# # "" | | ??????????? #??#???#??????# # "" | | ??????????? #??#?????#??#### ## " | | ??????????? #??????######### ## | | ??????????? #???#??# # ##### | | ???????????#+###### #?#????# + ##??# | | ??????????? #### #######?## # #?#?? | | ??????????? T #??# # T ############ #??## | | ??????????? ##?# # # ## ##### | | ???????? ?? #?# + #"" """"" # | | ????????#?########### # #"T """"" # | | ??????????# #" #######"" """"" + | | ???????#??# """ #%" ####### # """ | | ??????????# """ # # # # """ | | ?????????## """ + #gT ! # # """ | | ??????#???# """ # # g # | | ??????????# """ # YlHgg ######### # | | #?????????# "T" # % #@""" #?######### | | | ??????#???# # # """ ### ! | | ####??????#####/##### # """ #?# #### #### ## ## | | #????#????# ######### #??# # #? | | #?#???????# ## + #??# ## | | %[ #?????????# ## # ##?# # # | | #?????#???######## "# # #??# # ## " | | #?###########????# ## # #??# # " | | [! ### #?#?## ## # #?## # " | | %**#?# "" """ ##???# ## # #??# | | *! #?# ""S """ #??#?# ######### ##?# # # | | ! ### "" """ ##??## #???#???# #??# # # | | ## #????# #???????# #??# # ## | | ### ##?#?# #????#?##+####+######## | | #?# #???## #??#?#?# #??#??#### | | ### #????# #??##??# """ #??#?????? | | #######+########## ######## """ #?????#?#? | | # """ #?#??????? | | # #????????? | | # #??????#?? | | ############# #####/### + *| #????????? | | ###???????#?# # = ## # *| #???????? | | ????#??????##! !#! = ## # ##???????? | | ???#??????#?##!!!!## ## ##########????????? | | ?##????#?????####### "T" # ?????????????????? | +----------------------------------------------------+ Best States ------------- Heat Dissipation 31 Energy Generation 14 Energy Capacity 280 Matter Stores 300 Matter Capacity 300 Sight Range 16 Robot Scan Range 14 Terrain Scan Range 16 Terrain Scan Density 10 Armor Coverage 375 Evasion (%) 55 Recoil Reduction 4 Item Schematics ----------------- Imp. Datajack | -8/Materials | Scanalyzed System Shield | -8/Materials | Scanalyzed Robot Schematics ------------------ None Fabricated ------------ Nothing Alien Tech Used ----------------- None Achievements -------------- None Challenges ------------ None Game ------ Seed VisualBehemothExtractor Manual? 0 Play Time 00:27:44 Cumulative 43.3 hours Start 2025.03.15 @ 19:07:46 End 2025.03.16 @ 19:41:10 Sessions 5 Manual Loads 0 Difficulty Rogue Special Mode None Game No. 75 Rogue 75 Adventurer 0 Explorer 0 Win Type - Total 0 Types 0/0/0/0/0/0/0/0/0 Lore% 20 Gallery% 43 Achievement% 35 Wizard Run 0 Options --------- Layout 1 ASCII 0 Keyboard 0 Movement Mouse Keybinds 0 Fullscreen 2 Font 32/Smallcaps Map View 50x35 Zoom Use 0% Tactical HUD 1 Map Filters NONE Filters NONE Steam 1 RUN: e2c1eda6-d25c-466b-87e7-cb513a6aaace